fUST/lending_fUST_20241229
["ID","MTS","AMOUNT","RATE_DAILY","PERIOD"]
[346971182,1735440647291,-155.462926,0.00015189,2]
[346971183,1735440647300,-155.462926,0.00015189,2]
[346971184,1735440647309,-177.758355,0.00015189,2]
[346971185,1735440647318,-177.758355,0.00015189,2]
[346971186,1735440647327,-151.0,0.00015189,2]
[346971187,1735440647336,-500.0,0.00015189,2]
[346971188,1735440647346,-151.0,0.00015189,2]
[346971189,1735440647355,-160.9658,0.00015189,2]
[346971190,1735440647365,-160.9658,0.00015189,2]
[346971191,1735440647375,-500.0,0.00015189,2]
[346971192,1735440647384,-505.08678835,0.00015189,2]
[346971193,1735440647393,-25110.56,0.00015189,2]
[346971194,1735440647403,-151.0,0.00015189,2]
[346971195,1735440647413,-500.0,0.00015189,2]
[346971196,1735440647422,-283.824463,0.00015189,2]
[346971197,1735440647432,-421.005008,0.0001519,2]
[346971198,1735440647441,-885.21,0.0001519,2]
[346971199,1735440647451,-341.321169,0.0001519,2]
[346971200,1735440647460,-500.0,0.0001519,2]
[346971201,1735440647469,-341.321169,0.0001519,2]
[346971202,1735440647479,-742.25,0.0001519,2]
[346971203,1735440647489,-151.0,0.0001519,2]
[346971204,1735440647498,-500.0,0.0001519,2]
[346971205,1735440647507,-1013.35,0.0001519,2]
[346971206,1735440647517,-500.0,0.0001519,2]
[346971207,1735440647526,-223.899545,0.0001519,2]
[346971208,1735440647536,-151.0,0.0001519,2]
[346971209,1735440647545,-1201.765447,0.0001519,2]
[346971210,1735440647554,-1201.765447,0.0001519,2]
[346971211,1735440647564,-276.818976,0.0001519,2]
[346971212,1735440647573,-276.818976,0.0001519,2]
[346971213,1735440647583,-227.435927,0.0001519,2]
[346971214,1735440647592,-227.435927,0.0001519,2]
[346971215,1735440647602,-500.0,0.0001519,2]
[346971216,1735440647612,-151.0,0.000152,2]
[346971217,1735440647621,-151.0,0.000152,2]
[346971218,1735440647630,-151.0,0.000153,2]
[346971219,1735440647639,-1919.6,0.00015392,2]
[346971220,1735440647648,-151.0,0.00015393,2]
[346971221,1735440647658,-500.0,0.00015461,2]
[346971222,1735440647666,-500.0,0.00015461,2]
[346971223,1735440647675,-500.0,0.00015461,2]
[346971224,1735440647685,-500.0,0.00015462,2]
[346971225,1735440647694,-500.0,0.00015462,2]
[346971226,1735440647703,-575.57,0.00015462,2]
[346971227,1735440647712,-2075.01,0.00015462,2]
[346971228,1735440647722,-1130.65,0.00015462,2]
[346971229,1735440647731,-558.77,0.00015462,2]
[346971230,1735440647740,-500.0,0.00015462,2]
[346971231,1735440647749,-500.0,0.00015462,2]
[346971232,1735440647758,-679.42,0.00015462,2]
[346971233,1735440647767,-1165.82,0.00015462,2]
[346971234,1735440647777,-512.24403238,0.00015463,2]
[346971235,1735440647786,-151.0,0.00015463,2]
[346971236,1735440647795,-206.523486,0.00015463,2]
[346971237,1735440647804,-207.84510615,0.00015463,2]
[346971238,1735440647813,-699.69,0.00015463,2]
[346971239,1735440647822,-538.99,0.00015463,2]
[346971240,1735440647831,-500.0,0.00015463,2]
[346971241,1735440647841,-1000.0,0.00015463,2]
[346971242,1735440647850,-500.0,0.00015463,2]
[346971243,1735440647859,-452.97412801,0.00015463,2]
[346971244,1735440647868,-500.0,0.00015463,2]
[346971245,1735440647878,-238.07794607,0.00015463,2]
[346971246,1735440647887,-500.0,0.00015463,2]
[346971247,1735440647896,-500.0,0.00015463,2]
[346971248,1735440647906,-155.462926,0.00015463,2]
[346971249,1735440647915,-155.462926,0.00015463,2]
[346971250,1735440647924,-177.758355,0.00015463,2]
[346971251,1735440647937,-177.758355,0.00015463,2]
[346971252,1735440647946,-151.0,0.00015463,2]
[346971253,1735440647955,-500.0,0.00015463,2]
[346971254,1735440647964,-151.0,0.00015463,2]
[346971255,1735440647975,-160.9658,0.00015463,2]
[346971256,1735440647984,-160.9658,0.00015463,2]
[346971257,1735440647993,-291.03782104,0.00015463,2]
[346971258,1735440648002,-25110.56,0.00015463,2]
[346971259,1735440648012,-151.0,0.00015463,2]
[346971260,1735440648021,-500.0,0.00015463,2]
[346971261,1735440648030,-283.824463,0.00015463,2]
[346971262,1735440648039,-151.0,0.00015464,2]
[346971263,1735440648049,-885.21,0.00015464,2]
[346971264,1735440648058,-341.321169,0.00015464,2]
[346971265,1735440648068,-500.0,0.00015464,2]
[346971266,1735440648077,-341.321169,0.00015464,2]
[346971267,1735440648086,-742.25,0.00015464,2]
[346971268,1735440648096,-151.0,0.00015464,2]
[346971269,1735440648105,-617.67340672,0.00015464,2]
[346971270,1735440648116,-1013.35,0.00015464,2]
[346971271,1735440648125,-500.0,0.00015464,2]
[346971272,1735440648134,-223.899545,0.00015464,2]
[346971273,1735440648143,-1201.765447,0.00015464,2]
[346971274,1735440648152,-1201.765447,0.00015464,2]
[346971275,1735440648162,-276.818976,0.00015464,2]
[346971276,1735440648171,-276.818976,0.00015464,2]
[346971277,1735440648181,-227.435927,0.00015464,2]
[346971278,1735440648191,-155.462926,0.00015464,2]
[346971279,1735440648200,-227.435927,0.00015464,2]
[346971280,1735440648209,-155.462929,0.00015464,2]
[346971281,1735440648218,-177.758355,0.00015464,2]
[346971282,1735440648228,-177.758356,0.00015464,2]
[346971283,1735440648237,-151.0,0.00015464,2]
[346971284,1735440648246,-500.0,0.00015464,2]
[346971285,1735440648255,-151.0,0.00015464,2]
[346971286,1735440648265,-151.0,0.000155,2]
[346971287,1735440648274,-151.0,0.000156,2]
[346971288,1735440648284,-151.0,0.000156,2]
[346971289,1735440648293,-151.0,0.000156,2]
[346971290,1735440648302,-1919.6,0.00015666,2]
[346971291,1735440648312,-1919.6,0.00015666,2]
[346971292,1735440648321,-151.0,0.00015666,2]
[346971293,1735440648331,-283.824463,0.00015666,2]
[346971294,1735440648341,-20025.63500437,0.00015667,2]
[346971295,1735440648350,-153754.63245634,0.00015667,2]
[346971296,1735440648360,-151.0,0.00015667,2]
[346971297,1735440648370,-151.0,0.00015667,2]
[346971298,1735440648380,-421.005008,0.00015667,2]
[346971299,1735440648390,-160.9658,0.00015667,2]
[346971300,1735440648399,-160.965808,0.00015667,2]
[346971301,1735440648409,-500.0,0.00015735,2]
[346971302,1735440648418,-500.0,0.00015735,2]
[346971303,1735440648426,-500.0,0.00015735,2]
[346971304,1735440648435,-500.0,0.00015736,2]
[346971305,1735440648443,-500.0,0.00015736,2]
[346971306,1735440648451,-2075.01,0.00015736,2]
[346971307,1735440648461,-1130.65,0.00015736,2]
[346971308,1735440648470,-558.77,0.00015736,2]
[346971309,1735440648480,-500.0,0.00015736,2]
[346971310,1735440648489,-500.0,0.00015736,2]
[346971311,1735440648499,-679.42,0.00015736,2]
[346971312,1735440648509,-1165.82,0.00015736,2]
[346971313,1735440648519,-151.0,0.00015737,2]
[346971314,1735440648528,-699.69,0.00015737,2]
[346971315,1735440648539,-538.99,0.00015737,2]
[346971316,1735440648549,-301.74270659,0.00015737,2]
[346971317,1735440648558,-1000.0,0.00015737,2]
[346971318,1735440648568,-500.0,0.00015737,2]
[346971319,1735440648578,-500.0,0.00015737,2]
[346971320,1735440648587,-500.0,0.00015737,2]
[346971321,1735440648597,-500.0,0.00015737,2]
[346971322,1735440648607,-500.0,0.00015737,2]
[346971323,1735440648617,-6213.40199228,0.00015737,2]
[346971324,1735440648708,-14991.46111334,0.00015737,2]
[346971325,1735440648719,-3905.69689438,0.00015737,2]
[346971326,1735440648729,-500.0,0.00015737,2]
[346971327,1735440648740,-151.0,0.00015738,2]
[346971328,1735440648750,-885.21,0.00015738,2]
[346971329,1735440648759,-500.0,0.00015738,2]
[346971330,1735440648768,-742.25,0.00015738,2]
[346971331,1735440648778,-1013.35,0.00015738,2]
[346971332,1735440648787,-500.0,0.00015738,2]
[346971333,1735440648796,-223.899545,0.00015738,2]
[346971334,1735440648806,-1201.765447,0.00015738,2]
[346971335,1735440648815,-1201.765451,0.00015738,2]
[346971336,1735440648824,-276.818976,0.00015738,2]
[346971337,1735440648834,-276.818976,0.00015738,2]
[346971338,1735440648844,-227.435927,0.00015738,2]
[346971339,1735440648853,-227.435931,0.00015738,2]
[346971340,1735440648863,-500.0,0.00015738,2]
[346971341,1735440648872,-151.0,0.000159,2]
[346971342,1735440648882,-151.0,0.000159,2]
[346971343,1735440648891,-151.0,0.000159,2]
[346971344,1735440648901,-1919.6,0.0001594,2]
[346971345,1735440648910,-151.0,0.00015941,2]
[346971346,1735440648920,-151.0,0.00015941,2]
[346971347,1735440648929,-605.41082675,0.00016009,2]
[346971348,1735440648941,-500.0,0.00016009,2]
[346971349,1735440648951,-570.33,0.00016009,2]
[346971350,1735440648960,-2075.01,0.0001601,2]
[346971351,1735440648971,-1130.65,0.0001601,2]
[346971352,1735440648992,-558.77,0.0001601,2]
[346971353,1735440649002,-500.0,0.0001601,2]
[346971354,1735440649013,-500.0,0.0001601,2]
[346971355,1735440649023,-679.42,0.0001601,2]
[346971356,1735440649149,-1165.82,0.0001601,2]
[346971357,1735440649161,-341.321169,0.00016011,2]
[346971358,1735440649170,-341.321169,0.00016011,2]
[346971359,1735440649179,-151.0,0.00016011,2]
[346971360,1735440649189,-699.69,0.00016011,2]
[346971361,1735440649198,-538.99,0.00016011,2]
[346971362,1735440649207,-1000.0,0.00016011,2]
[346971363,1735440649217,-500.0,0.00016011,2]
[346971364,1735440649226,-500.0,0.00016011,2]
[346971365,1735440649235,-500.0,0.00016011,2]
[346971366,1735440649245,-500.0,0.00016011,2]
[346971367,1735440649254,-506.42628816,0.00016011,2]
[346971368,1735440649262,-2148.73050816,0.00016011,2]
[346971369,1735440649274,-13283.76631176,0.00016011,2]
[346971370,1735440649286,-807.3147242,0.00016011,2]
[346971371,1735440649300,-8870.74845588,0.00016011,2]
[346971372,1735440649310,-500.0,0.00016011,2]
[346971373,1735440649319,-421.005008,0.00016012,2]
[346971374,1735440649329,-885.21,0.00016012,2]
[346971375,1735440649339,-500.0,0.00016012,2]
[346971376,1735440649348,-742.25,0.00016012,2]
[346971377,1735440649357,-151.0,0.00016012,2]
[346971378,1735440649366,-1013.35,0.00016012,2]
[346971379,1735440649376,-500.0,0.00016012,2]
[346971380,1735440649386,-223.899541,0.00016012,2]
[346971381,1735440649396,-500.0,0.00016012,2]
[346971382,1735440649406,-151.0,0.000161,2]
[346971383,1735440649416,-151.0,0.000162,2]
[346971384,1735440649425,-151.0,0.000162,2]
[346971385,1735440649434,-1919.6,0.00016214,2]
[346971386,1735440649445,-1919.6,0.00016214,2]
[346971387,1735440649455,-151.0,0.00016215,2]
[346971388,1735440649465,-151.452421,0.00016215,2]
[346971389,1735440649474,-476.82465501,0.00016256,2]
[346971390,1735440649483,-500.0,0.00016283,2]
[346971391,1735440649492,-2075.01,0.00016284,2]
[346971392,1735440649502,-1130.65,0.00016284,2]
[346971393,1735440649512,-558.77,0.00016284,2]
[346971394,1735440649522,-500.0,0.00016284,2]
[346971395,1735440649532,-500.0,0.00016284,2]
[346971396,1735440649541,-679.42,0.00016284,2]
[346971397,1735440649552,-1165.82,0.00016284,2]
[346971398,1735440649562,-699.69,0.00016285,2]
[346971399,1735440649571,-538.99,0.00016285,2]
[346971400,1735440649581,-1000.0,0.00016285,2]
[346971401,1735440649591,-500.0,0.00016285,2]
[346971402,1735440649601,-500.0,0.00016285,2]
[346971403,1735440649610,-500.0,0.00016285,2]
[346971404,1735440649620,-500.0,0.00016285,2]
[346971405,1735440649630,-19072.70991911,0.00016285,2]
[346971406,1735440649643,-2687.0048329,0.00016285,2]
[346971407,1735440649654,-2327.10167064,0.00016285,2]
[346971408,1735440649666,-1023.74357735,0.00016285,2]
[346971409,1735440649676,-555.69950481,0.00016285,2]
[346971410,1735440649685,-421.005008,0.00016286,2]
[346971411,1735440649694,-885.21,0.00016286,2]
[346971412,1735440649704,-341.321169,0.00016286,2]
[346971413,1735440649713,-500.0,0.00016286,2]
[346971414,1735440649723,-341.321169,0.00016286,2]
[346971415,1735440649733,-742.25,0.00016286,2]
[346971416,1735440649742,-151.0,0.00016286,2]
[346971417,1735440649752,-1013.35,0.00016286,2]
[346971418,1735440649761,-500.0,0.00016286,2]
[346971419,1735440649771,-500.0,0.00016286,2]
[346971420,1735440649780,-151.0,0.000163,2]
[346971421,1735440649791,-564.72,0.00016438,2]
[346971422,1735440649800,-1919.6,0.00016488,2]
[346971423,1735440649810,-151.0,0.00016489,2]
[346971424,1735440649819,-151.580259,0.00016489,2]
[346971425,1735440649828,-151.0,0.000165,2]
[346971426,1735440649837,-1598.95,0.000165,2]
[346971427,1735440649847,-4175.03,0.000165,2]
[346971428,1735440649856,-5792.94,0.000165,2]
[346971429,1735440649866,-1919.6,0.00016555,2]
[346971430,1735440649875,-158.198186,0.00016556,2]
[346971431,1735440649884,-1286.86,0.00016556,2]
[346971432,1735440649894,-500.0,0.00016556,2]
[346971433,1735440649904,-500.0,0.00016556,2]
[346971434,1735440649914,-537.54839231,0.00016556,2]
[346971435,1735440649924,-381.45707601,0.00016556,2]
[346971436,1735440649936,-500.0,0.00016557,2]
[346971437,1735440649945,-2075.01,0.00016558,2]
[346971438,1735440649954,-1130.65,0.00016558,2]
[346971439,1735440649963,-558.77,0.00016558,2]
[346971440,1735440649973,-500.0,0.00016558,2]
[346971441,1735440649982,-520.17404247,0.00016558,2]
[346971442,1735440649992,-679.42,0.00016558,2]
[346971443,1735440650003,-1165.82,0.00016558,2]
[346971444,1735440650014,-699.69,0.00016559,2]
[346971445,1735440650023,-538.99,0.00016559,2]
[346971446,1735440650034,-1000.0,0.00016559,2]
[346971447,1735440650044,-500.0,0.00016559,2]
[346971448,1735440650053,-500.0,0.00016559,2]
[346971449,1735440650062,-500.0,0.00016559,2]
[346971450,1735440650072,-500.0,0.00016559,2]
[346971451,1735440650081,-25110.56,0.00016559,2]
[346971452,1735440650091,-421.005008,0.0001656,2]
[346971453,1735440650100,-885.21,0.0001656,2]
[346971454,1735440650110,-341.321169,0.0001656,2]
[346971455,1735440650120,-500.0,0.0001656,2]
[346971456,1735440650131,-341.321174,0.0001656,2]
[346971457,1735440650140,-742.25,0.0001656,2]
[346971458,1735440650149,-1013.35,0.0001656,2]
[346971459,1735440650159,-500.0,0.0001656,2]
[346971460,1735440650168,-500.0,0.0001656,2]
[346971461,1735440650178,-1919.6,0.00016762,2]
[346971462,1735440650188,-608.735,0.0001677,2]
[346971463,1735440650198,-151.0,0.000168,2]
[346971464,1735440650207,-1919.6,0.00016828,2]
[346971465,1735440650217,-2928.28,0.00016829,2]
[346971466,1735440650226,-500.0,0.00016829,2]
[346971467,1735440650236,-1175.97,0.00016829,2]
[346971468,1735440650246,-151.702112,0.00016829,2]
[346971469,1735440650255,-500.0,0.00016829,2]
[346971470,1735440650265,-504.7910895,0.00016829,2]
[346971471,1735440650275,-746.3,0.00016829,2]
[346971472,1735440650284,-500.0,0.00016829,2]
[346971473,1735440650294,-421.005008,0.00016829,2]
[346971474,1735440650303,-421.005016,0.00016829,2]
[346971475,1735440650314,-7197.45,0.00016829,2]
[346971476,1735440650323,-500.0,0.00016829,2]
[346971477,1735440650333,-500.0,0.00016829,2]
[346971478,1735440650342,-500.0,0.00016829,2]
[346971479,1735440650352,-500.0,0.00016829,2]
[346971480,1735440650362,-1286.86,0.0001683,2]
[346971481,1735440650371,-500.0,0.0001683,2]
[346971482,1735440650381,-500.0,0.0001683,2]
[346971483,1735440650391,-500.0,0.00016831,2]
[346971484,1735440650400,-2075.01,0.00016832,2]
[346971485,1735440650411,-1130.65,0.00016832,2]
[346971486,1735440650420,-558.77,0.00016832,2]
[346971487,1735440650430,-500.0,0.00016832,2]
[346971488,1735440650440,-679.42,0.00016832,2]
[346971489,1735440650450,-1165.82,0.00016832,2]
[346971490,1735440650459,-699.69,0.00016833,2]
[346971491,1735440650469,-538.99,0.00016833,2]
[346971492,1735440650478,-1000.0,0.00016833,2]
[346971493,1735440650488,-500.0,0.00016833,2]
[346971494,1735440650497,-500.0,0.00016833,2]
[346971495,1735440650506,-500.0,0.00016833,2]
[346971496,1735440650516,-500.0,0.00016833,2]
[346971497,1735440650526,-25110.56,0.00016833,2]
[346971498,1735440650536,-885.21,0.00016834,2]
[346971499,1735440650545,-500.0,0.00016834,2]
[346971500,1735440650555,-742.25,0.00016834,2]
[346971501,1735440650564,-1013.35,0.00016834,2]
[346971502,1735440650574,-500.0,0.00016834,2]
[346971503,1735440650583,-165.89628753,0.00016834,2]
[346971504,1735440650592,-151.0,0.000169,2]
[346971505,1735440650602,-299.667,0.00017032,2]
[346971506,1735440650611,-1919.6,0.00017036,2]
[346971507,1735440650620,-2928.28,0.00017103,2]
[346971508,1735440650631,-500.0,0.00017103,2]
[346971509,1735440650641,-1175.97,0.00017103,2]
[346971510,1735440650650,-500.0,0.00017103,2]
[346971511,1735440650660,-746.3,0.00017103,2]
[346971512,1735440650669,-500.0,0.00017103,2]
[346971513,1735440650678,-500.0,0.00017103,2]
[346971514,1735440650687,-500.0,0.00017103,2]
[346971515,1735440650696,-500.0,0.00017103,2]
[346971516,1735440650706,-500.0,0.00017103,2]
[346971517,1735440650715,-1286.86,0.00017104,2]
[346971518,1735440650724,-190.29821304,0.00017104,2]
[346971519,1735440650733,-507.67376025,0.00017104,2]
[346971520,1735440650742,-500.0,0.00017105,2]
[346971521,1735440650752,-2075.01,0.00017106,2]
[346971522,1735440650761,-1130.65,0.00017106,2]
[346971523,1735440650770,-558.77,0.00017106,2]
[346971524,1735440650780,-500.0,0.00017106,2]
[346971525,1735440650789,-679.42,0.00017106,2]
[346971526,1735440650798,-1165.82,0.00017106,2]
[346971527,1735440650808,-699.69,0.00017107,2]
[346971528,1735440650818,-538.99,0.00017107,2]
[346971529,1735440650827,-1000.0,0.00017107,2]
[346971530,1735440650837,-500.0,0.00017107,2]
[346971531,1735440650846,-500.0,0.00017107,2]
[346971532,1735440650855,-500.0,0.00017107,2]
[346971533,1735440650866,-500.0,0.00017107,2]
[346971534,1735440650875,-1919.6,0.00017107,2]
[346971535,1735440650884,-25110.56,0.00017107,2]
[346971536,1735440650962,-885.21,0.00017108,2]
[346971537,1735440650972,-500.0,0.00017108,2]
[346971538,1735440650982,-742.25,0.00017108,2]
[346971539,1735440650992,-1013.35,0.00017108,2]
[346971540,1735440651001,-500.0,0.00017108,2]
[346971541,1735440651010,-151.0,0.000172,2]
[346971542,1735440651020,-1919.6,0.0001731,2]
[346971543,1735440651030,-476.82465501,0.00017376,2]
[346971544,1735440651040,-2928.28,0.00017377,2]
[346971545,1735440651050,-500.0,0.00017377,2]
[346971546,1735440651059,-1175.97,0.00017377,2]
[346971547,1735440651068,-500.0,0.00017377,2]
[346971548,1735440651077,-746.3,0.00017377,2]
[346971549,1735440651086,-504.32199502,0.00017377,2]
[346971550,1735440651095,-7197.45,0.00017377,2]
[346971551,1735440651105,-503.44053095,0.00017377,2]
[346971552,1735440651114,-500.0,0.00017377,2]
[346971553,1735440651123,-500.0,0.00017377,2]
[346971554,1735440651132,-502.55471068,0.00017377,2]
[346971555,1735440651141,-7833.04,0.00017377,2]
[346971556,1735440651151,-1286.86,0.00017378,2]
[346971557,1735440651160,-500.0,0.00017379,2]
[346971558,1735440651169,-2075.01,0.0001738,2]
[346971559,1735440651179,-1130.65,0.0001738,2]
[346971560,1735440651188,-558.77,0.0001738,2]
[346971561,1735440651198,-500.0,0.0001738,2]
[346971562,1735440651207,-679.42,0.0001738,2]
[346971563,1735440651216,-1165.82,0.0001738,2]
[346971564,1735440651226,-699.69,0.00017381,2]
[346971565,1735440651235,-538.99,0.00017381,2]
[346971566,1735440651244,-1052.49767907,0.00017381,2]
[346971567,1735440651253,-500.0,0.00017381,2]
[346971568,1735440651262,-500.0,0.00017381,2]
[346971569,1735440651272,-500.0,0.00017381,2]
[346971570,1735440651281,-500.0,0.00017381,2]
[346971571,1735440651290,-25110.56,0.00017381,2]
[346971572,1735440651299,-885.21,0.00017382,2]
[346971573,1735440651309,-557.91144526,0.00017382,2]
[346971574,1735440651318,-742.25,0.00017382,2]
[346971575,1735440651328,-1013.35,0.00017382,2]
[346971576,1735440651337,-500.0,0.00017382,2]
[346971577,1735440651346,-1919.6,0.00017396,2]
[346971578,1735440651355,-1919.6,0.00017396,2]
[346971579,1735440651365,-1919.6,0.00017396,2]
[346971580,1735440651374,-1919.6,0.00017396,2]
[346971581,1735440651384,-1919.77810354,0.00017396,2]
[346971582,1735440651393,-2298.34,0.00017397,2]
[346971583,1735440651403,-151.0,0.000174,2]
[346971584,1735440651412,-7197.45,0.00017437,2]
[346971585,1735440651422,-7197.45,0.00017437,2]
[346971586,1735440651431,-7197.45,0.00017437,2]
[346971587,1735440651440,-342.6364825,0.00017473,2]
[346971588,1735440651449,-8526.76426415,0.00017489,2]
[346971589,1735440651459,-313.94976286,0.00017499,2]
[346971590,1735440651469,-7197.45,0.00017599,2]
[346971591,1735440651478,-7197.45,0.00017599,2]
[346971592,1735440651488,-7197.45,0.00017645,2]
[346971593,1735440651499,-151.0,0.00017649,2]
[346971594,1735440651508,-7197.45,0.00017649,2]
[346971595,1735440651517,-7197.45,0.00017649,2]
[346971596,1735440651526,-7197.45,0.0001765,2]
[346971597,1735440651536,-2928.28,0.00017651,2]
[346971598,1735440651545,-500.0,0.00017651,2]
[346971599,1735440651554,-1175.97,0.00017651,2]
[346971600,1735440651563,-500.0,0.00017651,2]
[346971601,1735440651572,-746.3,0.00017651,2]
[346971602,1735440651582,-500.0,0.00017651,2]
[346971603,1735440651593,-500.0,0.00017651,2]
[346971604,1735440651602,-7833.04,0.00017651,2]
[346971605,1735440651611,-1286.86,0.00017652,2]
[346971606,1735440651621,-500.0,0.00017653,2]
[346971607,1735440651633,-2075.01,0.00017654,2]
[346971608,1735440651642,-1130.65,0.00017654,2]
[346971609,1735440651652,-558.77,0.00017654,2]
[346971610,1735440651661,-500.0,0.00017654,2]
[346971611,1735440651671,-679.42,0.00017654,2]
[346971612,1735440651680,-1165.82,0.00017654,2]
[346971613,1735440651689,-699.69,0.00017655,2]
[346971614,1735440651699,-538.99,0.00017655,2]
[346971615,1735440651708,-500.0,0.00017655,2]
[346971616,1735440651718,-500.0,0.00017655,2]
[346971617,1735440651728,-500.0,0.00017655,2]
[346971618,1735440651737,-500.0,0.00017655,2]
[346971619,1735440651746,-25110.56,0.00017655,2]
[346971620,1735440651756,-885.21,0.00017656,2]
[346971621,1735440651765,-742.25,0.00017656,2]
[346971622,1735440651775,-1013.35,0.00017656,2]
[346971623,1735440651784,-500.0,0.00017656,2]
[346971624,1735440651794,-2298.34,0.00017671,2]
[346971625,1735440651803,-7197.45,0.00017696,2]
[346971626,1735440651813,-151.0,0.000177,2]
[346971627,1735440651822,-7197.45,0.00017711,2]
[346971628,1735440651832,-151.0,0.000178,2]
[346971629,1735440651841,-313.94976277,0.00017859,2]
[346971630,1735440651850,-151.0,0.000179,2]
[346971631,1735440651860,-151.0,0.000179,2]
[346971632,1735440651871,-7197.45,0.00017918,2]
[346971633,1735440651881,-151.790189,0.00017921,2]
[346971634,1735440651890,-7197.45,0.00017922,2]
[346971635,1735440651900,-7197.45,0.00017923,2]
[346971636,1735440651909,-7197.45,0.00017924,2]
[346971637,1735440651919,-2928.28,0.00017925,2]
[346971638,1735440651928,-500.0,0.00017925,2]
[346971639,1735440651941,-1175.97,0.00017925,2]
[346971640,1735440651951,-500.0,0.00017925,2]
[346971641,1735440651960,-746.3,0.00017925,2]
[346971642,1735440651970,-437.20836857,0.00017925,2]
[346971643,1735440651981,-7833.04,0.00017925,2]
[346971644,1735440651990,-1286.86,0.00017926,2]
[346971645,1735440652000,-7197.45,0.00017927,2]
[346971646,1735440652010,-583.65759604,0.00017927,2]
[346971647,1735440652020,-2075.01,0.00017928,2]
[346971648,1735440652029,-1130.65,0.00017928,2]
[346971649,1735440652039,-558.77,0.00017928,2]
[346971650,1735440652049,-245.0894247,0.00017928,2]
[346971651,1735440652059,-679.42,0.00017928,2]
[346971652,1735440652068,-1165.82,0.00017928,2]
[346971653,1735440652078,-699.69,0.00017929,2]
[346971654,1735440652089,-538.99,0.00017929,2]
[346971655,1735440652098,-500.0,0.00017929,2]
[346971656,1735440652108,-500.0,0.00017929,2]
[346971657,1735440652118,-500.0,0.00017929,2]
[346971658,1735440652128,-500.0,0.00017929,2]
[346971659,1735440652138,-25110.56,0.00017929,2]
[346971660,1735440652147,-885.21,0.0001793,2]
[346971661,1735440652157,-742.25,0.0001793,2]
[346971662,1735440652167,-1013.35,0.0001793,2]
[346971663,1735440652177,-500.0,0.0001793,2]
[346971664,1735440652187,-2298.34,0.00017945,2]
[346971665,1735440652196,-500.0,0.00017973,2]
[346971666,1735440652206,-500.43824881,0.00017973,2]
[346971667,1735440652215,-500.0,0.00017973,2]
[346971668,1735440652225,-500.0,0.00017973,2]
[346971669,1735440652234,-970.0,0.00017985,2]
[346971670,1735440652245,-970.0,0.00017985,2]
[346971671,1735440652254,-970.0,0.00017985,2]
[346971672,1735440652264,-970.0,0.00017985,2]
[346971673,1735440652273,-970.0,0.00017985,2]
[346971674,1735440652282,-970.0,0.00017985,2]
[346971675,1735440652292,-970.0,0.00017985,2]
[346971676,1735440652302,-248.918742,0.00017985,2]
[346971677,1735440652312,-7197.45,0.00017985,2]
[346971678,1735440652321,-7197.45,0.00017985,2]
[346971679,1735440652331,-7197.45,0.00017985,2]
[346971680,1735440652340,-7197.45,0.00017985,2]
[346971681,1735440652350,-7197.45,0.00017985,2]